Cogmind - Beta 17 @@@ ROGUE MODE // 2026.08.20 @ 10:02:29 Player: Zane Result: Self-destructed Performance ------------- Evolutions (2) 1000 Regions Visited (5) 1000 Robots Destroyed (10) 50 Value Destroyed (209) 209 Prototype IDs (27) 540 Alien Tech Used (0) 0 Bonus (276) 276 TOTAL SCORE: 3075 Bonus ------- Aligned with FarCom 300 Friendly Fire -24 Cogmind --------- Core Integrity 443/550 Matter 247/400 Energy 100/100 System Corruption 0% Temperature Cool (1) Movement Flying (50) Location -8/Materials Parts ------- > --- POWER (1) -------- (None) > --- PROPULSION (4) --- Flying Fortress v7 > --- UTILITY (4) ------ Large Storage Unit Medium Matter Pod Seismic Detector Reaction Control System > --- WEAPON (2) ------- Pulse Rifle Light Assault Rifle > --- INVENTORY (15) --- Ion Engine Light Nuclear Core Medium Storage Unit Advanced Weight Redist. System Sensor Array Hacking Suite Enhanced Flamer Peak State ------------ > --- POWER ------------ Light Nuclear Core > --- PROPULSION ------- Flying Fortress v7 > --- UTILITY ---------- Large Storage Unit Medium Matter Pod Seismic Detector Reaction Control System > --- WEAPON ----------- Pulse Rifle Enhanced Flamer > --- INVENTORY -------- Ion Engine Medium Storage Unit Pulse Rifle Light Assault Rifle Light Assault Rifle Mining Laser [Rating: 47] Favorites ----------- Power Ion Engine Engine Ion Engine Power Core Light Nuclear Core Propulsion Aluminum Leg Leg Aluminum Leg Flight Unit Flying Fortress v7 Utility Seismic Detector Device Seismic Detector Storage Medium Storage Unit Weapon Light Assault Rifle Energy Gun Pulse Rifle Ballistic Gun Light Assault Rifle Launcher Grenade Launcher Special Weapon Enhanced Flamer Build | -11 -10 -10 -10 -9 -8 ------- Run | Yrd Mat Min Exi Min Mat Slots Evolved 4 | . . . . . 4 Power . | . . . . . . Propulsion 2 | . . . . . 2 Utility 2 | . . . . . 2 Weapon . | . . . . . . Parts Attached 19 | 7 1 . . 2 9 Power 4 | 1 . . . . 3 Engine 2 | 1 . . . . 1 Core 2 | . . . . . 2 Reactor . | . . . . . . Propulsion 3 | 2 . . . . 1 Treads . | . . . . . . Leg 2 | 2 . . . . . Wheel . | . . . . . . Hover . | . . . . . . Flight 1 | . . . . . 1 Utility 6 | 2 1 . . . 3 Device 2 | 1 . . . . 1 Storage 4 | 1 1 . . . 2 Processor . | . . . . . . Hackware . | . . . . . . Protection . | . . . . . . Artifact . | . . . . . . Weapon 6 | 2 . . . 2 2 Energy Gun 2 | . . . . . 2 Energy Cannon . | . . . . . . Ballistic Gun 2 | 2 . . . . . Ballistic Cannon . | . . . . . . Launcher 1 | . . . . 1 . Special Weapon 1 | . . . . 1 . Impact Weapon . | . . . . . . Slashing Weapon . | . . . . . . Piercing Weapon . | . . . . . . Special Melee Weapon . | . . . . . . Unidentified Prototypes . | . . . . . . Parts Lost 3 | . . . . 1 2 Power 1 | . . . . . 1 Propulsion . | . . . . . . Utility . | . . . . . . Weapon 2 | . . . . 1 1 Highest Loss Streak 2 | . . . . 1 2 To Critical Strikes . | . . . . . . Average Backups 6 | 2 4 7 8 6 5 Power 1 | . 1 1 1 1 1 Propulsion . | . 1 1 1 1 . Utility 1 | . 1 2 1 2 2 Weapon 2 | . 1 3 3 2 1 Tool/Special . | . . . . . . Unused Backups 8 | . . . 3 1 4 Power 1 | . . . 1 . . Propulsion 1 | . . . . 1 . Utility 3 | . . . . . 3 Weapon 3 | . . . 2 . 1 Tool/Special . | . . . . . . Average Slot Usage (%) 92 | . 100 100 100 99 70 Engine 11 | . 14 14 14 14 2 Core 1 | . . . . . 5 Leg 20 | . 28 28 28 28 . Flight 2 | . . . . . 8 Device 14 | . 14 14 14 14 17 Storage 15 | . 14 14 14 14 18 Energy Gun 1 | . . . . . 6 Ballistic Gun 21 | . 28 28 28 20 7 Special Weapon 1 | . . . . 4 3 Peak Build Rating 47 | 7 7 8 11 12 47 Average Rating 17 | 5 7 7 9 11 44 On Entrance 7 | . 7 7 8 11 12 Avg Prop Armor Cover (%) . | . . . . . . Naked Turns . | . . . . . . Heaviest Build 41 | 13 18 18 18 20 41 Greatest Support 50 | 20 20 20 20 20 50 Greatest Overweight (x) 1 | 1 . . . 1 . Average Overweight (x) . | . . . . . . Largest Inventory Capacity 15 | 8 10 10 10 10 15 Average Capacity 10 | 7 9 10 10 10 14 Most Carried 10 | 3 7 9 10 10 10 Average Carried 7 | 2 4 7 9 9 5 Final Capacity 15 | 8 10 10 10 10 15 Final Carried 10 | 3 7 9 10 9 7 Class Distribution -------------------- 100% | Mutant Dominant Class ---------------- Mutant | -10/Materials Mutant | -10/Mines Mutant | -10/Exiles Mutant | -9/Mines Mutant | -8/Materials Resources | -11 -10 -10 -10 -9 -8 ----------- Run | Yrd Mat Min Exi Min Mat Matter Collected 408 | 221 . . 53 10 124 Remotely . | . . . . . . Salvage Created 235 | 21 . 20 . 70 124 Parts 21 | 2 . . . 3 16 Haulers Intercepted 1 | . . . . . 1 Recyclers Shooed 2 | 1 . . . 1 . Parts Field Recycled . | . . . . . . Retrieved Matter . | . . . . . . Parts Self-Destructed . | . . . . . . Prevented . | . . . . . . Parts Restored . | . . . . . . Kills | -11 -10 -10 -10 -9 -8 ------- Run | Yrd Mat Min Exi Min Mat Combat Hostiles Destroyed 15 | . . 1 . 10 4 Guns 4 | . . 1 . 1 2 Cannons 2 | . . . . . 2 AOE 9 | . . . . 9 . Classes Destroyed 7 | 1 . 1 . 2 3 Tunneler 1 | 1 . . . . . Hauler 1 | . . . . . 1 Operator 1 | . . . . . 1 Swarmer 4 | . . 1 . . 3 Grunt 2 | . . . . 2 . Sentry 1 | . . . . . 1 Assembled 8 | . . . . 8 . Best Kill Streak 8 | 1 . 1 . 8 3 Combat Bots Only 8 | . . 1 . 8 3 Max Kills in Single Turn 3 | 1 . 1 . 3 1 Gunslinging . | . . . . . . Exploded 3 | . . . . 3 . Melee . | . . . . . . Uniques/NPCs Destroyed . | . . . . . . Combat | -11 -10 -10 -10 -9 -8 -------- Run | Yrd Mat Min Exi Min Mat Hostile Shots Fired 124 | . . 1 . 38 85 Missed 51 | . . . . 12 39 Hits 73 | . . 1 . 26 46 Melee 1 | . . . . . 1 Projectile 72 | . . 1 . 26 45 Critical Strikes 4 | . . . . . 4 Part Disruptions 1 | . . . . 1 . Damage Taken 912 | . . 7 . 388 517 Core 179 | . . . . 72 107 Absorbed by Shields . | . . . . . . Core Remaining (%) 85 | 100 . . . 71 . Volleys Fired 35 | 3 . 3 . 9 20 Largest 2 | 2 . 2 . 2 2 Hottest 126 | 40 . 40 . 50 126 Shots Fired 70 | 6 . 6 . 18 40 Gun 54 | 6 . 6 . 9 33 Cannon . | . . . . . . Launcher 9 | . . . . 9 . Special 7 | . . . . . 7 Kinetic 38 | 6 . 6 . 9 17 Thermal 23 | . . . . . 23 Explosive 9 | . . . . 9 . Electromagnetic . | . . . . . . Robot Hit Streak 12 | 5 . 2 . 12 12 Robot Miss Streak 5 | 1 . 2 . 2 5 Penetration Max . | . . . . . . Secondary Targets . | . . . . . . Shots Hit Robots 45 | 5 . 3 . 13 24 Core Hits 35 | 1 . 1 . 23 10 Critical Kills . | . . . . . . Critical Parts Destroyed . | . . . . . . Critical Strikes 2 | . . . . . 2 Burn 2 | . . . . . 2 Melee Attacks . | . . . . . . Impact . | . . . . . . Slashing . | . . . . . . Piercing . | . . . . . . Sneak Attacks . | . . . . . . Combat Hostiles . | . . . . . . Follow-up Attacks . | . . . . . . Damage Inflicted 1131 | 39 . 44 . 723 325 Guns 414 | 39 . 34 . 57 284 Cannons . | . . . . . . Explosions 647 | . . . . 647 . Melee . | . . . . . . Ramming 29 | . . 10 . 19 . Kinetic 189 | 39 . 34 . 57 59 Thermal 266 | . . . . . 266 Explosive 647 | . . . . 647 . Electromagnetic . | . . . . . . Impact . | . . . . . . Slashing . | . . . . . . Piercing . | . . . . . . Highest Corruption . | . . . . . . Average Corruption . | . . . . . . Corruption Purged . | . . . . . . Corruption Blocked . | . . . . . . Overload Shots . | . . . . . . Overflow Damage 27 | . . . . 27 . Projectiles . | . . . . . . Explosions 27 | . . . . 27 . Melee . | . . . . . . Knockbacks . | . . . . . . Impact . | . . . . . . Kinetic . | . . . . . . Secondary . | . . . . . . Self-Inflicted Damage 45 | . . . . 45 . Shots 2 | . . . . 2 . Rammed . | . . . . . . Targets Rammed 8 | . . 4 . 4 . Kicked 8 | . . 4 . 4 . Crushed . | . . . . . . Highest Temperature 251 | . . . . 48 251 Average Temperature 68 | . . . . 17 79 Received Heat Transfer 143 | . . . . 116 27 Siege Activations . | . . . . . . Martial Activations . | . . . . . . Shielding Activations . | . . . . . . Robots Disrupted . | . . . . . . Combat Hostiles . | . . . . . . Robots Corrupted . | . . . . . . Combat Hostiles . | . . . . . . Parts Fried . | . . . . . . Impact Corruptions . | . . . . . . Robots Melted . | . . . . . . Combat Hostiles . | . . . . . . Parts Melted . | . . . . . . Heat Transferred 1035 | . . . . . 1035 Parts Sabotaged . | . . . . . . Parts Stolen . | . . . . . . Parts Stripped . | . . . . . . Power Chain Reactions . | . . . . . . Alert | -11 -10 -10 -10 -9 -8 ------- Run | Yrd Mat Min Exi Min Mat Maximum Alert Level . | . . . . . . Low Security (%) 100 | 100 100 100 . 100 100 Level 1 . | . . . . . . Level 2 . | . . . . . . Level 3 . | . . . . . . Level 4 . | . . . . . . Level 5 . | . . . . . . High Security . | . . . . . . Max Security . | . . . . . . Peak Influence 156 | 5 10 20 . 70 156 Initial 3 | . . . . . 3 Average 29 | . 1 2 . 41 65 Influence Increases 553 | 5 17 20 . 109 402 Destroy 0b10 Robot/C 140 | . . 20 . 40 80 Destroy 0b10 Robot/NC 15 | 5 . . . . 10 Destroy Leader 32 | . . . . 10 22 Successful Hack 37 | . 17 . . . 20 Disable Machine 15 | . . . . . 15 Destroy Structure 44 | . . . . 44 . Partial Spotted 15 | . . . . . 15 Lose Combat Pursuer 255 | . . . . 15 240 Influence Decreases 442 | 5 17 20 . 100 300 Entered New Map 6 | . . . . . 6 Time Decay 265 | 5 17 20 . 90 133 Lost Part 30 | . . . . 10 20 Purge Threat 141 | . . . . . 141 Squads Dispatched 6 | . 1 . . . 5 Investigation 1 | . 1 . . . . Extermination . | . . . . . . Reinforcement 5 | . . . . . 5 Assault . | . . . . . . Garrison . | . . . . . . Intercept . | . . . . . . Searches Triggered . | . . . . . . Construction Impeded . | . . . . . . Haulers Reinforced . | . . . . . . Active Scanning Responses . | . . . . . . Cargo Convoy Interrupts . | . . . . . . Stealth | -11 -10 -10 -10 -9 -8 --------- Run | Yrd Mat Min Exi Min Mat Distress Signals 5 | . 1 . . . 4 Communications Jammed . | . . . . . . Distress Signals . | . . . . . . Times Spotted 52 | . 4 3 . 14 31 Peak Tracking Total 16 | . 3 3 . 7 16 Tactical Retreats 10 | . . . . 2 8 Traps | -11 -10 -10 -10 -9 -8 ------- Run | Yrd Mat Min Exi Min Mat Traps Triggered . | . . . . . . Indirectly . | . . . . . . Trap Hack Attempts . | . . . . . . Triggered . | . . . . . . Disarmed . | . . . . . . Reprogrammed . | . . . . . . Reused . | . . . . . . Traps Extracted . | . . . . . . Installed . | . . . . . . Triggered . | . . . . . . Machines | -11 -10 -10 -10 -9 -8 ---------- Run | Yrd Mat Min Exi Min Mat Machines Disabled 1 | . . . . . 1 Max in Single Turn 1 | . . . . . 1 Machines Repaired . | . . . . . . Machines Dismantled . | . . . . . . Machines Sabotaged . | . . . . . . Overloaded Fab Kills . | . . . . . . Hacking | -11 -10 -10 -10 -9 -8 --------- Run | Yrd Mat Min Exi Min Mat Machines Accessed 7 | . 3 . 1 . 3 Terminals 6 | . 3 . . . 3 Fabricators . | . . . . . . Repair Stations . | . . . . . . Recycling Units . | . . . . . . Scanalyzers . | . . . . . . Garrison Access . | . . . . . . Total Hacks 22 | . 10 . 1 . 11 Successful 10 | . 6 . 1 . 3 Failed 12 | . 4 . . . 8 Catastrophic 1 | . 1 . . . . Database Lockouts . | . . . . . . Manual 10 | . 1 . 1 . 8 Terminals 21 | . 10 . . . 11 Fabricators . | . . . . . . Repair Stations . | . . . . . . Recycling Units . | . . . . . . Scanalyzers . | . . . . . . Garrison Access . | . . . . . . Terminal Hacks 10 | . 6 . 1 . 3 Part Schematic 1 | . 1 . . . . Prototype ID Bank 2 | . 1 . . . 1 Unreport Threat 1 | . . . . . 1 Surveillance Status 1 | . 1 . . . . Transport Status 1 | . . . . . 1 Hauler Manifests 2 | . 2 . . . . Zone Layout 1 | . 1 . . . . Proto ID Catalog 1 | . . . 1 . . Fabricator Hacks . | . . . . . . Repair Station Hacks . | . . . . . . Recycling Unit Hacks . | . . . . . . Scanalyzer . | . . . . . . Garrison Access Hacks . | . . . . . . Unauthorized Hacks . | . . . . . . Terminals . | . . . . . . Fabricators . | . . . . . . Repair Stations . | . . . . . . Recycling Units . | . . . . . . Scanalyzers . | . . . . . . Garrison Access . | . . . . . . Data Cores Recovered . | . . . . . . Used . | . . . . . . Hacking Detections 6 | . 3 . . . 3 Full Trace Events . | . . . . . . Feedback Events . | . . . . . . Feedback Blocked . | . . . . . . Robot Schematics Acquired . | . . . . . . Robots Built . | . . . . . . Authchips . | . . . . . . Time . | . . . . . . Total Robot Build Rating . | . . . . . . Part Schematics Acquired 1 | . 1 . . . . Parts Built . | . . . . . . Authchips . | . . . . . . Time . | . . . . . . Total Part Build Rating . | . . . . . . Part Studies Acquired . | . . . . . . Parts Repaired . | . . . . . . Time . | . . . . . . Parts Recycled . | . . . . . . Recycled Matter . | . . . . . . Retrieved Matter . | . . . . . . Retrieved Components . | . . . . . . Parts Scanalyzed . | . . . . . . Part Schematics Acquired . | . . . . . . Parts Damaged . | . . . . . . Bothacking | -11 -10 -10 -10 -9 -8 ------------ Run | Yrd Mat Min Exi Min Mat Used RIF Installer . | . . . . . . Robots Hacked . | . . . . . . Non-combat . | . . . . . . Combat . | . . . . . . Robot Hacks Applied . | . . . . . . Relay Couplers Released . | . . . . . . Fabnet Peak Effective % . | . . . . . . Robots Rewired . | . . . . . . Allies Hacked . | . . . . . . Hacks Repelled . | . . . . . . Allies | -11 -10 -10 -10 -9 -8 -------- Run | Yrd Mat Min Exi Min Mat Total Allies . | . . . . . . Largest Group . | . . . . . . Highest-Rated Group . | . . . . . . Highest-Rated Ally . | . . . . . . Total Orders . | . . . . . . Ally Attacks . | . . . . . . Total Damage . | . . . . . . Kills . | . . . . . . Allies Corrupted . | . . . . . . Allies Melted . | . . . . . . Intel | -11 -10 -10 -10 -9 -8 ------- Run | Yrd Mat Min Exi Min Mat Active Infowar (turns) 1039 | 63 131 206 325 188 126 Seismic 1039 | 63 131 206 325 188 126 Robot Analysis Total . | . . . . . . Derelict Logs Recovered . | . . . . . . Drone Launches . | . . . . . . Drone Recoveries . | . . . . . . Exploration | -11 -10 -10 -10 -9 -8 ------------- Run | Yrd Mat Min Exi Min Mat Turns Passed 1261 | 112 131 206 325 188 299 Spaces Moved 1050 | 68 100 137 268 125 352 Core 4 | 4 . . . . . Treads . | . . . . . . Legs 694 | 64 100 137 268 125 . Wheels . | . . . . . . Hover . | . . . . . . Flight 352 | . . . . . 352 Fastest Speed 50 | 50 120 120 120 120 50 Average Speed 96 | 120 120 120 120 120 50 Slowest Speed 190 | 190 120 120 120 190 50 Overloaded Moves . | . . . . . . Propulsion Burnouts . | . . . . . . Robots Hopped 6 | . . . . . 6 Potential Cave-ins . | . . . . . . Cave-ins Triggered . | . . . . . . Exploration Rate (%) 34 | 4 18 45 60 31 46 Regions Visited 5 Branch Regions 3 Pre-discovered Areas . | . . . . . . Known Exits Taken . | . . . . . . Unknown Exits Taken 5 | 1 1 1 1 1 . Scrap Searched . | . . . . . . Spaces Dug . | . . . . . . Terrain Destroyed 68 | . . . . 68 . Melee . | . . . . . . Projectile . | . . . . . . AOE 68 | . . . . 68 . Terrain Rammed . | . . . . . . Walls Destroyed . | . . . . . . Machines Disabled . | . . . . . . Actions | -11 -10 -10 -10 -9 -8 --------- Run | Yrd Mat Min Exi Min Mat Total 1216 | 90 110 173 273 144 426 Wait 84 | 10 7 28 . 1 38 Move 1033 | 67 99 136 267 124 340 Hop 6 | . . . . . 6 Pick Up 16 | 3 3 2 2 1 5 Fast Attach 10 | 7 . . . . 3 Attach 5 | . . . . 1 4 Detach 2 | . . . . . 2 Swap 8 | . 1 . . 3 4 Drop 9 | . . . 4 1 4 Fire 35 | 3 . 3 . 9 20 Melee . | . . . . . . Ram . | . . . . . . Kick 8 | . . 4 . 4 . Crush . | . . . . . . Escape Stasis . | . . . . . . Rewire . | . . . . . . Trap . | . . . . . . Miscellaneous . | . . . . . . Route ------- -11/Scrapyard -10/Materials -10/Mines -10/Exiles -9/Mines -8/Materials (discovered 1 exit: [*Fac]) History --------- Turn | Location | Event 19 | -11/Scrapyard | Discovered new exit (range 15) 113 | -11/Scrapyard | Entered Materials 167 | -10/Materials | Discovered new exit (range 13) 227 | -10/Materials | Met 8R-AWN 244 | -10/Materials | Entered Mines 247 | -10/Mines | Followed 8R-AWN into the Mines 310 | -10/Mines | Build established: Mutant 393 | -10/Mines | YI-UF0 nonchalantly dropped a Grenade Launcher on the ground 445 | -10/Mines | Discovered new exit (range 5) 450 | -10/Mines | Entered Exiles 480 | -10/Exiles | Welcomed by 8R-AWN 500 | -10/Exiles | Met EX-HEX 533 | -10/Exiles | Met EX-BIN 602 | -10/Exiles | Aligned with FarCom system 603 | -10/Exiles | Given EX-Vault access code 630 | -10/Exiles | Opened EX-Vault 640 | -10/Exiles | Found Flying Fortress v7 663 | -10/Exiles | Warned to stay clear of 0b10 Research branches 765 | -10/Exiles | Discovered new exit (range 10) 775 | -10/Exiles | Left Exiles lab with Flying Fortress v7 775 | -10/Exiles | Entered Mines 799 | -9/Mines | Assembled infested the area 801 | -9/Mines | Met a Derelict bent on vengeance 864 | -9/Mines | A weapon hastily lodged in a ceiling crevice suddenly fell to the ground 917 | -9/Mines | Destroyed 8 combat bots 957 | -9/Mines | Discovered new exit (range 5) 963 | -9/Mines | Entered Materials 963 | -8/Materials | Evolved 4 slots: Propulsion x2, Utility x2 1052 | -8/Materials | Discovered new exit (range 16) 1262 | -8/Materials | Self-destructed Last Messages --------------- 01151_ O-24 Administrator destroyed. 01154_ K-01 Serf collects debris. 01155_ Acquired Hacking Suite. 01158_ Acquired 16 matter. 01158_ K-01 Serf collects debris. 01168_ Acquired 41 matter. 01180_ O-16 Technician: "IFF HANDSHAKE FAILED. SECURING TERMINAL." 01183_ O-16 Technician sends out distress signal. 01194_ ALERT: Hostiles spotted, dispatching reinforcements to Terminal M010. 01215_ W-25 Informer sends out distress signal. 01239_ Material Compactor disabled. 01246_ C-30 ARC bursts open, deploying its payload. 01246_ S-10 Pest unfolds itself. 01256_ ALERT: Suspicious intruders detected, dispatching Cutter reinforcements to area. 01262_ Deuterium Engine severed. Map ----- +----------------------------------------------------+ | ???????????????????????????????????? | | ???????????????????????????????????? | | ???????????????????????????????????? | | ???????????????????????????????????? | | ???????????????????????????????????? | | ???????????????????????????????????? | | ???????????????????????????????????? | | ???????????????????????????????????? | | ???????????????????????????????????? | | ####??????????????????????#????????? | | # ???????????????????? #????????? | | ?#???????????????# #????????? | | #??????????????## #????????? | | ################ #???????? | | # ????????? | | ## T ????????? | | ## " ? ????????? | | ## "%" #??? ????????? | | ## ^ " #???#c #????????? | | ## #???# k #????????? | | / ##### #???# #????????? | | ## #???# #???# +????????? | | #### #####/###### #???# #????????? | | #??# ## ## #???# #????????? | | #??# ## ## #???# c #????????? | | #??# ## ! ## #???# @#????????? | | #### ## ## #???# #????????? | | # ## """ ## #???# #????????? | | # ## """" ## #???# #????????? | | # ## """" ## #???#s #????????? | | / + """"" ## #???#s #????????? | | ####### """ ## #???#s #????????? | | ??????###########/#####s #????????? | | ???????????????# #s #????????? | | ???????????????# #s #????????? | | #######????????# + #????????? | | #????????# # #????????? | | """ #????????# # #????????? | | """ #????????# # #????????? | | """ #????????######## #????????? | | #??????########?# #????????? | | """ #??????# ??# #????????? | | """ #??????# #?# #????????? | | """ #??????# """#?? #????????? | | ! #??????# R"#?? #????????? | | ###+####?????? """??# ###??????? | | #??????? ?? H #??????? | | ! #########"+### #??????? | | % #??????? | | " #??????? | +----------------------------------------------------+ Best States ------------- Heat Dissipation 31 Energy Generation 14 Energy Capacity 275 Matter Stores 300 Matter Capacity 400 Sight Range 16 Terrain Scan Density 10 Evasion (%) 68 Item Schematics ----------------- Seismic Detector | -10/Materials | Hacked Robot Schematics ------------------ None Fabricated ------------ Nothing Repaired ---------- Nothing Studied --------- None Alien Tech Used ----------------- None Achievements -------------- Follow The Leader Challenges ------------ None Game ------ Seed TerrainSuspensionFragment Manual? 0 Play Time 00:26:59 Cumulative 52.4 hours Start 2026.08.20 @ 08:49:39 End 2026.08.20 @ 10:02:29 Sessions 1 Manual Loads 0 Difficulty Rogue Special Mode None Game No. 73 Rogue 73 Adventurer 0 Explorer 0 Win Type - Total 0 Types 0/0/0/0/0/0/0/0/0/0 Lore% 49 Gallery% 36 Achievement% 27 Wizard Run 0 Options --------- Layout 1 ASCII 0 Keyboard 0 Movement Numpad Keybinds 0 Fullscreen 2 Font 24/Smallcaps Map View 50x35 Zoom Use 0% Tactical HUD 1 Map Filters NONE Filters NONE Steam 1 RUN: 1c3d6394-fddd-41bb-a027-ce4ea3e819cc